fUSD/lending_fUSD_20240319
["ID","MTS","AMOUNT","RATE_DAILY","PERIOD"]
[319602317,1710885155335,-1701.68,0.00033424,5]
[319602318,1710885155344,-1413.56,0.00033424,5]
[319602319,1710885155355,-671.21,0.00033424,5]
[319602320,1710885155364,-856.2,0.00033424,5]
[319602321,1710885155374,-382.02604344,0.00033424,5]
[319602322,1710885155383,-1896.31,0.00033424,5]
[319602323,1710885155394,-2782.61,0.00033424,5]
[319602324,1710885155403,-500.0,0.00033424,5]
[319602325,1710885155413,-609.95,0.00033424,5]
[319602326,1710885155422,-500.0,0.00033424,5]
[319602327,1710885155432,-1536.94,0.00033424,5]
[319602328,1710885155442,-2552.49,0.00033424,5]
[319602329,1710885155452,-2081.49,0.00033424,5]
[319602330,1710885155462,-500.0,0.00033424,5]
[319602331,1710885155475,-1715.16,0.00033424,5]
[319602332,1710885155485,-1266.65,0.00033424,5]
[319602333,1710885155495,-1645.88,0.00033424,5]
[319602334,1710885155506,-500.0,0.00033424,5]
[319602335,1710885155516,-500.0,0.00033424,5]
[319602336,1710885155525,-500.0,0.00033424,5]
[319602337,1710885155535,-500.0,0.00033424,5]
[319602338,1710885155545,-1784.06,0.00033424,5]
[319602339,1710885155556,-1425.44,0.00033424,5]
[319602340,1710885155566,-645.99,0.00033424,5]
[319602341,1710885155576,-174.81128844,0.00033424,5]
[319602342,1710885155586,-856.99,0.00033424,5]
[319602343,1710885155596,-500.0,0.00033424,5]
[319602344,1710885155606,-1509.6,0.00033424,5]
[319602345,1710885155616,-500.0,0.00033424,5]
[319602346,1710885155626,-1899.37,0.00033424,5]
[319602347,1710885155636,-825.81,0.00033424,5]
[319602348,1710885155646,-500.0,0.00033424,5]
[319602349,1710885155657,-1668.46,0.00033424,5]
[319602350,1710885155667,-500.0,0.00033424,5]
[319602351,1710885155676,-1817.59,0.00033424,5]
[319602352,1710885155686,-612.56,0.00033424,5]
[319602353,1710885155697,-500.0,0.00033424,5]
[319602354,1710885155707,-641.85,0.00033424,5]
[319602355,1710885155717,-500.0,0.00033424,5]
[319602356,1710885155726,-3349.51,0.00033424,5]
[319602357,1710885155737,-1668.73,0.00033424,5]
[319602358,1710885155746,-500.0,0.00033424,5]
[319602359,1710885155756,-2185.83,0.00033424,5]
[319602360,1710885155765,-1047.88,0.00033424,5]
[319602361,1710885155776,-500.0,0.00033424,5]
[319602362,1710885155786,-709.8,0.00033424,5]
[319602363,1710885155796,-406.93953542,0.00033424,5]
[319602364,1710885155806,-3189.82,0.00033424,5]
[319602365,1710885155816,-2131.99,0.00033424,5]
[319602366,1710885155826,-500.0,0.00033424,5]
[319602367,1710885155835,-500.0,0.00033424,5]
[319602368,1710885155845,-2548.99,0.00033424,5]
[319602369,1710885155855,-1717.39,0.00033424,5]
[319602370,1710885155865,-500.0,0.00033424,5]
[319602371,1710885155875,-3499.12,0.00033424,5]
[319602372,1710885155884,-3366.11,0.00033424,5]
[319602373,1710885155894,-920.95,0.00033424,5]
[319602374,1710885155904,-1172.13,0.00033424,5]
[319602375,1710885155913,-762.14,0.00033424,5]
[319602376,1710885155923,-500.0,0.00033424,5]
[319602377,1710885155932,-500.0,0.00033424,5]
[319602378,1710885155942,-500.0,0.00033424,5]
[319602379,1710885155951,-207.09544585,0.00033424,5]
[319602380,1710885155961,-500.0,0.00033424,5]
[319602381,1710885155971,-651.81,0.00033424,5]
[319602382,1710885155980,-500.0,0.00033424,5]
[319602383,1710885155990,-2755.73,0.00033424,5]
[319602384,1710885156000,-2171.26,0.00033424,5]
[319602385,1710885156010,-554.31,0.00033424,5]
[319602386,1710885156019,-913.38,0.00033424,5]
[319602387,1710885156029,-517.56,0.00033424,5]
[319602388,1710885156039,-609.9958643,0.00033424,5]
[319602389,1710885156049,-1265.69,0.00033424,5]
[319602390,1710885156059,-622.91,0.00033424,5]
[319602391,1710885156069,-576.05,0.00033424,5]
[319602392,1710885156079,-2191.46,0.00033424,5]
[319602393,1710885156089,-1378.12,0.00033424,5]
[319602394,1710885156099,-500.0,0.00033424,5]
[319602395,1710885156108,-832.3,0.00033424,5]
[319602396,1710885156118,-3259.21,0.00033424,5]
[319602397,1710885156127,-516.5,0.00033424,5]
[319602398,1710885156136,-500.0,0.00033424,5]
[319602399,1710885156146,-500.0,0.00033424,5]
[319602400,1710885156155,-750.69,0.00033424,5]
[319602401,1710885156165,-6099.55,0.00033424,5]
[319602402,1710885156175,-500.0,0.00033424,5]
[319602403,1710885156184,-705.53,0.00033424,5]
[319602404,1710885156193,-510.82,0.00033424,5]
[319602405,1710885156204,-583.59,0.00033424,5]
[319602406,1710885156215,-554.14,0.00033424,5]
[319602407,1710885156224,-1054.91,0.00033424,5]
[319602408,1710885156234,-1769.12,0.00033424,5]
[319602409,1710885156244,-432.94747939,0.00033424,5]
[319602410,1710885156254,-758.11,0.00033424,5]
[319602411,1710885156264,-500.0,0.00033424,5]
[319602412,1710885156273,-614.47,0.00033424,5]
[319602413,1710885156283,-500.0,0.00033424,5]
[319602414,1710885156294,-565.83,0.00033424,5]
[319602415,1710885156304,-3031.48,0.00033424,5]
[319602416,1710885156314,-1793.05,0.00033424,5]
[319602417,1710885156324,-1813.36,0.00033424,5]
[319602418,1710885156334,-1781.25,0.00033424,5]
[319602419,1710885156344,-500.0,0.00033424,5]
[319602420,1710885156354,-5948.25,0.00033424,5]
[319602421,1710885156364,-721.19,0.00033424,5]
[319602422,1710885156375,-500.0,0.00033424,5]
[319602423,1710885156385,-500.0,0.00033424,5]
[319602424,1710885156403,-2298.94,0.00033424,5]
[319602425,1710885156413,-500.0,0.00033424,5]
[319602426,1710885156423,-1467.68,0.00033424,5]
[319602427,1710885156432,-2048.3,0.00033424,5]
[319602428,1710885156452,-740.6,0.00033424,5]
[319602429,1710885156462,-500.0,0.00033424,5]
[319602430,1710885156473,-3725.64,0.00033424,5]
[319602431,1710885156484,-7446.28,0.00033424,5]
[319602432,1710885156494,-1176.01,0.00033424,5]
[319602433,1710885156504,-500.0,0.00033424,5]
[319602434,1710885156514,-1639.61,0.00033424,5]
[319602435,1710885156525,-500.0,0.00033424,5]
[319602436,1710885156534,-814.35,0.00033424,5]
[319602437,1710885156544,-1904.86,0.00033424,5]
[319602438,1710885156555,-531.89,0.00033424,5]
[319602439,1710885156564,-541.15,0.00033424,5]
[319602440,1710885156574,-505.23,0.00033424,5]
[319602441,1710885156584,-1726.69,0.00033424,5]
[319602442,1710885156594,-500.0,0.00033424,5]
[319602443,1710885156604,-706.92,0.00033424,5]
[319602444,1710885156614,-1397.11,0.00033424,5]
[319602445,1710885156623,-644.74,0.00033424,5]
[319602446,1710885156633,-723.57,0.00033424,5]
[319602447,1710885156642,-2864.27,0.00033424,5]
[319602448,1710885156652,-2584.9,0.00033424,5]
[319602449,1710885156661,-500.0,0.00033424,5]
[319602450,1710885156671,-6961.76,0.00033424,5]
[319602451,1710885156680,-500.0,0.00033424,5]
[319602452,1710885156691,-1043.19,0.00033424,5]
[319602453,1710885156700,-915.89,0.00033424,5]
[319602454,1710885156710,-1045.63,0.00033424,5]
[319602455,1710885156720,-1312.85,0.00033424,5]
[319602456,1710885156729,-961.87,0.00033424,5]
[319602457,1710885156739,-3736.86,0.00033424,5]
[319602458,1710885156748,-1764.05,0.00033424,5]
[319602459,1710885156758,-500.0,0.00033424,5]
[319602460,1710885156767,-838.02,0.00033424,5]
[319602461,1710885156776,-500.0,0.00033424,5]
[319602462,1710885157009,-1302.7,0.00033424,5]
[319602463,1710885157020,-2820.33,0.00033424,5]
[319602464,1710885157030,-500.0,0.00033424,5]
[319602465,1710885157039,-2171.52,0.00033424,5]
[319602466,1710885157048,-4792.93,0.00033424,5]
[319602467,1710885157058,-500.0,0.00033424,5]
[319602468,1710885157067,-500.0,0.00033424,5]
[319602469,1710885157077,-500.0,0.00033424,5]
[319602470,1710885157086,-2181.61,0.00033424,5]
[319602471,1710885157096,-571.46909414,0.00033424,5]
[319602472,1710885157105,-1199.36,0.00033424,5]
[319602473,1710885157114,-501.95,0.00033424,5]
[319602474,1710885157124,-500.0,0.00033424,5]
[319602475,1710885157133,-1621.75,0.00033424,5]
[319602476,1710885157143,-589.7,0.00033424,5]
[319602477,1710885157153,-500.0,0.00033424,5]
[319602478,1710885157163,-855.86,0.00033424,5]
[319602479,1710885157173,-500.0,0.00033424,5]
[319602480,1710885157182,-3227.64,0.00033424,5]
[319602481,1710885157192,-863.41,0.00033424,5]
[319602482,1710885157202,-2111.52,0.00033424,5]
[319602483,1710885157213,-2950.43,0.00033424,5]
[319602484,1710885157222,-500.0,0.00033424,5]
[319602485,1710885157233,-500.0,0.00033424,5]
[319602486,1710885157242,-5122.72,0.00033424,5]
[319602487,1710885157252,-824.14,0.00033424,5]
[319602488,1710885157261,-500.0,0.00033424,5]
[319602489,1710885157271,-10026.4,0.00033424,5]
[319602490,1710885157280,-500.0,0.00033424,5]
[319602491,1710885157290,-500.0,0.00033424,5]
[319602492,1710885157300,-2275.12,0.00033424,5]
[319602493,1710885157310,-500.0,0.00033424,5]
[319602494,1710885157319,-565.71,0.00033424,5]
[319602495,1710885157329,-1033.05,0.00033424,5]
[319602496,1710885157339,-126732.2,0.00033424,5]
[319602497,1710885157349,-504.07,0.00033424,5]
[319602498,1710885157358,-500.0,0.00033424,5]
[319602499,1710885157367,-500.0,0.00033424,5]
[319602500,1710885157377,-4852.56,0.00033424,5]
[319602501,1710885157386,-2937.74,0.00033424,5]
[319602502,1710885157396,-1976.68,0.00033424,5]
[319602503,1710885157406,-777.71,0.00033424,5]
[319602504,1710885157415,-1133.54,0.00033424,5]
[319602505,1710885157425,-2119.46,0.00033424,5]
[319602506,1710885157436,-500.0,0.00033424,5]
[319602507,1710885157446,-7711.4,0.00033424,5]
[319602508,1710885157456,-524.36,0.00033424,5]
[319602509,1710885157467,-360.35135192,0.00033424,5]
[319602510,1710885157479,-7310.51,0.00033424,5]
[319602511,1710885157488,-500.0,0.00033424,5]
[319602512,1710885157498,-14442.37,0.00033424,5]
[319602513,1710885157508,-500.0,0.00033424,5]
[319602514,1710885157519,-500.0,0.00033424,5]
[319602515,1710885157529,-5376.56,0.00033424,5]
[319602516,1710885157538,-4230.03,0.00033424,5]
[319602517,1710885157547,-582.24,0.00033424,5]
[319602518,1710885157558,-751.89,0.00033424,5]
[319602519,1710885157567,-542.91,0.00033424,5]
[319602520,1710885157577,-500.0,0.00033424,5]
[319602521,1710885157587,-1949.45,0.00033424,5]
[319602522,1710885157596,-5623.75,0.00033424,5]
[319602523,1710885157605,-1033.59,0.00033424,2]
[319602524,1710885157615,-5877.04,0.00033424,5]
[319602525,1710885157647,-825.5,0.00033424,5]
[319602526,1710885157681,-521.04,0.00033424,5]
[319602527,1710885157691,-636.0,0.00033424,5]
[319602528,1710885157701,-503.31,0.00033424,5]
[319602529,1710885157710,-500.0,0.00033424,5]
[319602530,1710885157720,-3068.4,0.00033424,5]
[319602531,1710885157729,-2857.27,0.00033424,5]
[319602532,1710885157738,-814.62,0.00033424,5]
[319602533,1710885157748,-631.3,0.00033424,5]
[319602534,1710885157757,-500.0,0.00033424,5]
[319602535,1710885157767,-2550.99,0.00033424,5]
[319602536,1710885157776,-1149.73,0.00033424,5]
[319602537,1710885157785,-7487.75,0.00033424,5]
[319602538,1710885157794,-1638.18,0.00033424,5]
[319602539,1710885157804,-7814.4,0.00033424,5]
[319602540,1710885157813,-529.96,0.00033424,5]
[319602541,1710885157822,-705.8,0.00033424,5]
[319602542,1710885157832,-594.04,0.00033424,5]
[319602543,1710885157841,-500.0,0.00033424,5]
[319602544,1710885157850,-500.0,0.00033424,5]
[319602545,1710885157861,-500.0,0.00033424,5]
[319602546,1710885157870,-500.0,0.00033424,5]
[319602547,1710885157880,-3016.27,0.00033424,5]
[319602548,1710885157890,-500.0,0.00033424,5]
[319602549,1710885157900,-38480.53,0.00033424,5]
[319602550,1710885157910,-2988.01,0.00033424,5]
[319602551,1710885157920,-968.19,0.00033424,5]
[319602552,1710885157929,-767.81,0.00033424,5]
[319602553,1710885157939,-3358.0,0.00033424,5]
[319602554,1710885157949,-500.0,0.00033424,5]
[319602555,1710885157958,-2995.65,0.00033424,5]
[319602556,1710885157968,-500.0,0.00033424,5]
[319602557,1710885157977,-2879.31,0.00033424,5]
[319602558,1710885157986,-3475.26,0.00033424,5]
[319602559,1710885157995,-817.64,0.00033424,5]
[319602560,1710885158004,-626.59,0.00033424,5]
[319602561,1710885158013,-1532.23,0.00033424,5]
[319602562,1710885158023,-500.0,0.00033424,5]
[319602563,1710885158032,-1675.59,0.00033424,5]
[319602564,1710885158041,-1175.56,0.00033424,5]
[319602565,1710885158050,-1109.08,0.00033424,5]
[319602566,1710885158060,-1104.88,0.00033424,5]
[319602567,1710885158069,-1008.18,0.00033424,5]
[319602568,1710885158078,-2383.57,0.00033424,5]
[319602569,1710885158087,-6551.95,0.00033424,5]
[319602570,1710885158096,-20378.39,0.00033424,5]
[319602571,1710885158105,-3428.01,0.00033424,5]
[319602572,1710885158114,-500.0,0.00033424,5]
[319602573,1710885158123,-724.41,0.00033424,5]
[319602574,1710885158132,-2691.76,0.00033424,5]
[319602575,1710885158141,-4023.07,0.00033424,5]
[319602576,1710885158151,-500.0,0.00033424,5]
[319602577,1710885158160,-518.98,0.00033424,5]
[319602578,1710885158170,-532.04,0.00033424,5]
[319602579,1710885158179,-500.0,0.00033424,5]
[319602580,1710885158189,-3655.41,0.00033424,5]
[319602581,1710885158198,-3100.4,0.00033424,5]
[319602582,1710885158208,-532.61,0.00033424,5]
[319602583,1710885158218,-1495.58,0.00033424,5]
[319602584,1710885158228,-5255.9,0.00033424,5]
[319602585,1710885158238,-646.23,0.00033424,5]
[319602586,1710885158247,-500.0,0.00033424,5]
[319602587,1710885158257,-856.3,0.00033424,5]
[319602588,1710885158266,-1919.76,0.00033424,5]
[319602589,1710885158275,-2848.19,0.00033424,5]
[319602590,1710885158284,-500.0,0.00033424,5]
[319602591,1710885158294,-514.35,0.00033424,5]
[319602592,1710885158303,-84885.72,0.00033424,5]
[319602593,1710885158312,-7528.25,0.00033424,5]
[319602594,1710885158322,-917.99,0.00033424,5]
[319602595,1710885158331,-556.06,0.00033424,5]
[319602596,1710885158340,-2075.6,0.00033424,5]
[319602597,1710885158350,-500.0,0.00033424,5]
[319602598,1710885158359,-4053.66,0.00033424,5]
[319602599,1710885158370,-950.92,0.00033424,5]
[319602600,1710885158380,-1498.56,0.00033424,5]
[319602601,1710885158390,-6114.82,0.00033424,5]
[319602602,1710885158400,-1068.02,0.00033424,5]
[319602603,1710885158410,-1140.75,0.00033424,5]
[319602604,1710885158420,-1363.9,0.00033424,5]
[319602605,1710885158430,-348.78740775,0.00033424,5]
[319602606,1710885158440,-680.37,0.00033424,5]
[319602607,1710885158449,-7331.78,0.00033424,5]
[319602608,1710885158458,-6608.67,0.00033424,5]
[319602609,1710885158469,-5255.76,0.00033424,5]
[319602610,1710885158480,-1065.89,0.00033424,5]
[319602611,1710885158489,-535.13,0.00033424,5]
[319602612,1710885158499,-2244.41,0.00033424,5]
[319602613,1710885158508,-12679.11,0.00033424,5]
[319602614,1710885158518,-501.67,0.00033424,5]
[319602615,1710885158528,-500.0,0.00033424,5]
[319602616,1710885158537,-1134.2,0.00033424,5]
[319602617,1710885158546,-500.0,0.00033424,5]
[319602618,1710885158557,-416.25887145,0.00033424,5]
[319602619,1710885158566,-952.29,0.00033424,5]
[319602620,1710885158576,-16057.66,0.00033424,5]
[319602621,1710885158585,-5689.03,0.00033424,5]
[319602622,1710885158594,-9318.38,0.00033424,5]
[319602623,1710885158603,-661.71,0.00033424,5]
[319602624,1710885158613,-6799.03,0.00033424,5]
[319602625,1710885158622,-4026.73,0.00033424,5]
[319602626,1710885158632,-3035.5,0.00033424,5]
[319602627,1710885158640,-3750.07,0.00033424,5]
[319602628,1710885158651,-935.16,0.00033424,5]
[319602629,1710885158661,-6185.77,0.00033424,5]
[319602630,1710885158670,-1750.15,0.00033424,5]
[319602631,1710885158679,-507.49,0.00033424,5]
[319602632,1710885158689,-21984.05,0.00033424,5]
[319602633,1710885158698,-500.0,0.00033424,5]
[319602634,1710885158707,-1656.75,0.00033424,5]
[319602635,1710885158716,-682.19,0.00033424,5]
[319602636,1710885158726,-3232.39,0.00033424,5]
[319602637,1710885158735,-2644.39,0.00033424,5]
[319602638,1710885158745,-500.0,0.00033424,5]
[319602639,1710885158754,-4012.77,0.00033424,5]
[319602640,1710885158763,-5906.29,0.00033424,5]
[319602641,1710885158773,-500.0,0.00033424,5]
[319602642,1710885158782,-500.0,0.00033424,5]
[319602643,1710885158791,-1898.34,0.00033424,5]
[319602644,1710885158800,-6356.12,0.00033424,5]
[319602645,1710885158810,-860.9,0.00033424,5]
[319602646,1710885158820,-2450.74,0.00033424,5]
[319602647,1710885158830,-741.49,0.00033424,5]
[319602648,1710885158839,-988.62,0.00033424,5]
[319602649,1710885158848,-502.93,0.00033424,5]
[319602650,1710885158858,-3281.78,0.00033424,5]
[319602651,1710885158867,-887.69,0.00033424,5]
[319602652,1710885158876,-10393.93,0.00033424,5]
[319602653,1710885158886,-2054.31,0.00033424,5]
[319602654,1710885158895,-1073.2,0.00033424,5]
[319602655,1710885158903,-500.0,0.00033424,5]
[319602656,1710885158912,-5676.82,0.00033424,5]
[319602657,1710885158922,-500.0,0.00033424,5]
[319602658,1710885158931,-2336.1,0.00033424,5]
[319602659,1710885158941,-784.81,0.00033424,5]
[319602660,1710885158949,-500.0,0.00033424,5]
[319602661,1710885158958,-2928.09,0.00033424,5]
[319602662,1710885158967,-958.78,0.00033424,5]
[319602663,1710885158976,-12462.52,0.00033424,5]
[319602664,1710885158985,-5305.03,0.00033424,5]
[319602665,1710885158995,-742.85,0.00033424,5]
[319602666,1710885159004,-427.35489622,0.00033424,5]
[319602667,1710885159013,-500.0,0.00033424,5]
[319602668,1710885159022,-3248.64,0.00033424,5]
[319602669,1710885159031,-8000.71,0.00033424,5]
[319602670,1710885159040,-9028.78,0.00033424,5]
[319602671,1710885159049,-7424.85,0.00033424,5]
[319602672,1710885159058,-6273.21,0.00033424,5]
[319602673,1710885159067,-7152.27,0.00033424,5]
[319602674,1710885159077,-603.25,0.00033424,5]
[319602675,1710885159086,-11402.88,0.00033424,5]
[319602676,1710885159095,-920.58,0.00033424,5]
[319602677,1710885159105,-862.02,0.00033424,5]
[319602678,1710885159114,-5180.59,0.00033424,5]
[319602679,1710885159123,-1058.28,0.00033424,5]
[319602680,1710885159132,-6676.62,0.00033424,5]
[319602681,1710885159141,-50748.97,0.00033424,5]
[319602682,1710885159151,-12563.76,0.00033424,5]
[319602683,1710885159160,-4392.06,0.00033424,5]
[319602684,1710885159169,-500.0,0.00033424,5]
[319602685,1710885159178,-500.0,0.00033424,5]
[319602686,1710885159187,-947.45,0.00033424,5]
[319602687,1710885159195,-994.47,0.00033424,5]
[319602688,1710885159204,-1127.56,0.00033424,5]
[319602689,1710885159214,-6289.47,0.00033424,5]
[319602690,1710885159224,-500.0,0.00033424,5]
[319602691,1710885159233,-1554.32,0.00033424,5]
[319602692,1710885159242,-1563.9,0.00033424,5]
[319602693,1710885159251,-2538.59,0.00033424,5]
[319602694,1710885159261,-9279.39,0.00033424,5]
[319602695,1710885159271,-2973.35,0.00033424,5]
[319602696,1710885159281,-1071.73,0.00033424,5]
[319602697,1710885159290,-1557.91,0.00033424,5]
[319602698,1710885159300,-500.0,0.00033424,5]
[319602699,1710885159309,-921.84,0.00033424,5]
[319602700,1710885159318,-1497.67,0.00033424,5]
[319602701,1710885159327,-5460.3,0.00033424,5]
[319602702,1710885159338,-500.0,0.00033424,5]
[319602703,1710885159348,-549.68,0.00033424,5]
[319602704,1710885159358,-500.0,0.00033424,5]
[319602705,1710885159368,-866.95,0.00033424,5]
[319602706,1710885159378,-23885.26,0.00033424,5]
[319602707,1710885159387,-34338.3,0.00033424,5]
[319602708,1710885159397,-2241.19,0.00033424,5]
[319602709,1710885159407,-6038.59,0.00033424,5]
[319602710,1710885159416,-870.15,0.00033424,5]
[319602711,1710885159426,-1003.35,0.00033424,5]
[319602712,1710885159435,-500.0,0.00033424,5]
[319602713,1710885159445,-5507.6,0.00033424,5]
[319602714,1710885159454,-615.59,0.00033424,5]
[319602715,1710885159464,-5378.59,0.00033424,5]
[319602716,1710885159477,-500.0,0.00033424,5]
[319602717,1710885159486,-681.39,0.00033424,5]
[319602718,1710885159495,-3623.08,0.00033424,5]
[319602719,1710885159504,-659.74,0.00033424,5]
[319602720,1710885159515,-500.0,0.00033424,5]
[319602721,1710885159524,-500.0,0.00033424,5]
[319602722,1710885159533,-1648.34,0.00033424,5]
[319602723,1710885159543,-7204.29,0.00033424,5]
[319602724,1710885159555,-976.18,0.00033424,5]
[319602725,1710885159565,-1912.73,0.00033424,5]
[319602726,1710885159574,-3082.4,0.00033424,5]
[319602727,1710885159584,-2522.27,0.00033424,5]
[319602728,1710885159593,-6424.1,0.00033424,5]
[319602729,1710885159602,-5688.06,0.00033424,5]
[319602730,1710885159611,-1570.96,0.00033424,5]
[319602731,1710885159621,-500.0,0.00033424,5]
[319602732,1710885159630,-2703.38,0.00033424,5]
[319602733,1710885159640,-1409.47,0.00033424,5]
[319602734,1710885159650,-10351.23,0.00033424,5]
[319602735,1710885159659,-500.0,0.00033424,5]
[319602736,1710885159669,-723.42,0.00033424,5]
[319602737,1710885159678,-3159.85,0.00033424,5]
[319602738,1710885159687,-19207.21,0.00033424,5]
[319602739,1710885159696,-3910.17,0.00033424,5]
[319602740,1710885159705,-989.66,0.00033424,5]
[319602741,1710885159715,-500.0,0.00033424,5]
[319602742,1710885159724,-1575.99,0.00033424,5]
[319602743,1710885159733,-500.0,0.00033424,5]
[319602744,1710885159742,-2518.49,0.00033424,5]
[319602745,1710885159751,-500.0,0.00033424,5]
[319602746,1710885159760,-602.98,0.00033424,5]
[319602747,1710885159770,-2902.62,0.00033424,5]
[319602748,1710885159779,-1081.46,0.00033424,5]
[319602749,1710885159789,-996.99,0.00033424,5]
[319602750,1710885159798,-11316.17,0.00033424,5]
[319602751,1710885159808,-722.94,0.00033424,5]
[319602752,1710885159819,-21059.27,0.00033424,5]
[319602753,1710885159829,-1144.28,0.00033424,5]
[319602754,1710885159838,-3248.34,0.00033424,5]
[319602755,1710885159847,-500.0,0.00033424,5]
[319602756,1710885159857,-592.77,0.00033424,5]
[319602757,1710885159867,-611.45,0.00033424,5]
[319602758,1710885159876,-500.0,0.00033424,5]
[319602759,1710885159886,-1214.02,0.00033424,5]
[319602760,1710885159895,-5044.94,0.00033424,5]
[319602761,1710885159904,-500.0,0.00033424,5]
[319602762,1710885159913,-856.7,0.00033424,5]
[319602763,1710885159922,-6225.21,0.00033424,5]
[319602764,1710885159932,-608.72,0.00033424,5]
[319602765,1710885159942,-1511.11,0.00033424,5]
[319602766,1710885159952,-500.0,0.00033424,5]
[319602767,1710885159961,-1279.36,0.00033424,5]
[319602768,1710885159970,-8737.55,0.00033424,5]
[319602769,1710885159978,-11752.03,0.00033424,5]
[319602770,1710885159988,-4482.5,0.00033424,5]
[319602771,1710885159997,-5316.22,0.00033424,5]
[319602772,1710885160006,-1788.46,0.00033424,5]
[319602773,1710885160015,-1321.67,0.00033424,5]
[319602774,1710885160024,-22991.35,0.00033424,5]
[319602775,1710885160034,-518.08,0.00033424,5]
[319602776,1710885160043,-1177.76,0.00033424,5]
[319602777,1710885160053,-505.75,0.00033424,5]
[319602778,1710885160062,-1429.54,0.00033424,5]
[319602779,1710885160071,-2886.03,0.00033424,5]
[319602780,1710885160081,-500.0,0.00033424,5]
[319602781,1710885160091,-3473.42,0.00033424,5]
[319602782,1710885160101,-20562.17,0.00033424,5]
[319602783,1710885160110,-4026.93,0.00033424,5]
[319602784,1710885160119,-500.0,0.00033424,5]
[319602785,1710885160128,-805.12,0.00033424,5]
[319602786,1710885160137,-981.11,0.00033424,5]
[319602787,1710885160147,-877.4,0.00033424,5]
[319602788,1710885160376,-1121.88,0.00033424,5]
[319602789,1710885160388,-836.09,0.00033424,5]
[319602790,1710885160399,-12965.17,0.00033424,5]
[319602791,1710885160409,-8047.18,0.00033424,5]
[319602792,1710885160419,-4640.74,0.00033424,5]
[319602793,1710885160429,-6661.58,0.00033424,5]
[319602794,1710885160440,-720.32,0.00033424,5]
[319602795,1710885160450,-500.0,0.00033424,5]
[319602796,1710885160460,-3306.12,0.00033424,5]
[319602797,1710885160471,-1406.25,0.00033424,5]
[319602798,1710885160483,-603.58,0.00033424,5]
[319602799,1710885160493,-500.0,0.00033424,5]
[319602800,1710885160502,-1438.11,0.00033424,5]
[319602801,1710885160513,-6333.98,0.00033424,5]
[319602802,1710885160523,-2692.37,0.00033424,5]
[319602803,1710885160536,-26854.72,0.00033424,5]
[319602804,1710885160546,-614.48,0.00033424,5]
[319602805,1710885160558,-1298.71,0.00033424,5]
[319602806,1710885160567,-2847.31,0.00033424,5]
[319602807,1710885160577,-1953.31,0.00033424,5]
[319602808,1710885160586,-500.0,0.00033424,5]
[319602809,1710885160596,-521.8,0.00033424,5]
[319602810,1710885160605,-972.96,0.00033424,5]
[319602811,1710885160615,-500.0,0.00033424,5]
[319602812,1710885160624,-599.79,0.00033424,5]
[319602813,1710885160635,-1902.54,0.00033424,5]
[319602814,1710885160645,-673.97,0.00033424,5]
[319602815,1710885160655,-649.62,0.00033424,5]
[319602816,1710885160664,-26670.31,0.00033424,5]